Workbook

Sheet 入力データ1
A1: 1 | B1: 2 | C1: 3 | D1: 4 | E1: 5 | F1: 6 | G1: 7 | H1: 8 | I1: 9 | J1: 10 | K1: 11 | L1: 12 | M1: 13 | N1: 14 | O1: 15 | P1: 16 | Q1: 17 | R1: 18 | S1: 19 | T1: 20 | U1: 21 | V1: 22
G2: 上筋の1段目 | J2: 上筋の2段目 | M2: 下筋の1段目 | P2: 下筋の2段目 | S2: 側方鉄筋
A3: ケース | B3: 全高h （cm） | C3: 分割数 ndv | D3: 幅b （cm） | E3: コンクリート 強度fck （N/mm2） | F3: 鉄筋 仕様 | G3: 径 | H3: 本数 | I3: かぶり （cm） | J3: 径 | K3: 本数 | L3: かぶり （cm） | M3: 径 | N3: 本数 | O3: かぶり （cm） | P3: 径 | Q3: 本数 | R3: かぶり （cm） | S3: 径 | T3: 本数 | U3: 段数 | V3: 軸力 N'（kN）
A4: 1 | B4: 200 | C4: 200 | D4: 400 | E4: 30 | F4: SD345 | G4: D32 | H4: 31 | I4: 15 | J4: D32 | K4: 17 | L4: 25 | M4: D32 | N4: 31 | O4: 15 | P4: D32 | Q4: 17 | R4: 25 | S4: D32 | T4: 2.91 | U4: 11 | V4: 8000
A5: 2 | B5: 400 | C5: 400 | D5: 200 | E5: 30 | F5: SD345 | G5: D29 | H5: 15.95 | I5: 15 | J5: D29 | K5: 9.95 | L5: 25 | M5: D29 | N5: 15.95 | O5: 15 | P5: D29 | Q5: 9.95 | R5: 25 | S5: D32 | T5: 2.96 | U5: 27 | V5: 8000

Sheet 入力データ2
A1: 1 | B1: 2 | C1: 3 | D1: 4 | E1: 5 | F1: 6 | G1: 7 | H1: 8 | I1: 9 | J1: 10 | K1: 11 | L1: 12 | M1: 13 | N1: 14 | O1: 15 | P1: 16 | Q1: 17 | R1: 18 | S1: 19 | T1: 20 | U1: 21 | V1: 22 | W1: 23 | X1: 24
A2: ケース | B2: 横拘束筋呼び径 dias | C2: 横拘束筋 有効長 dd（cm） | D2: 横拘束筋 ピッチ ss（cm） | E2: 横拘束筋 降伏強度 fys（N/mm2） | F2: 断面形状 | G2: 軸方向筋 呼び径 diaa | H2: Lp算出の圧縮側軸方向筋本数 ns | I2: Lp算出の横拘束筋有効長ddd（cm） | J2: Lp算出 のかぶり c0（cm） | K2: 橋脚高さ hp (m) | L2: ah | M2: ros | N2: scc | O2: epz | P2: edes | Q2: epu | R2: n1 | S2: lp | T2: eput2 | U2: eput3 | V2: betas | W2: betac0 | X2: betan
A3: 1 | B3: D19 | C3: 87.5 | D3: 15 | E3: 345 | F3: 矩形 | G3: D32 | H3: 12 | I3: 87.5 | J3: 13.4 | K3: 10 | L3: 2.865 | M3: 0.008731428571 | N3: 32289.38057 | O3: 0.003325430857 | P3: 3346232.643 | Q3: 0.008150167213 | R3: 1.530877277 | S3: 663.1419612 | T3: 0.0352869049 | U3: 0.04940166686 | V3: 0.4160715028 | W3: 1.34 | X3: 1.756071503
A4: 2 | B4: D19 | C4: 75 | D4: 15 | E4: 345 | F4: 矩形 | G4: D29 | H4: 11 | I4: 75 | J4: 13.55 | K4: 10 | L4: 2.865 | M4: 0.01018666667 | N4: 32670.944 | O4: 0.003546336 | P4: 2868199.408 | Q4: 0.009241711277 | R4: 1.490359867 | S4: 564.0700672 | T4: 0.03915354477 | U4: 0.05481496267 | V4: 0.7207703305 | W4: 1.355 | X4: 2.075770331
B70: 1.055876493e-06 | C70: 1.055876493e-06 | D70: 32289.38057 | E70: 0.003325430857 | F70: 3346232.643 | G70: 1.530877277
B71: 2.229072597e-06 | C71: 2.229072597e-06 | D71: 32289.38057 | E71: 0.003325430857 | F71: 3346232.643 | G71: 1.530877277
B72: 3.4022687e-06 | C72: 3.4022687e-06 | D72: 32289.38057 | E72: 0.003325430857 | F72: 3346232.643 | G72: 1.530877277
B73: 4.575464803e-06 | C73: 4.575464803e-06 | D73: 32289.38057 | E73: 0.003325430857 | F73: 3346232.643 | G73: 1.530877277
B74: 5.748660907e-06 | C74: 5.748660907e-06 | D74: 32289.38057 | E74: 0.003325430857 | F74: 3346232.643 | G74: 1.530877277
B75: 6.92185701e-06 | C75: 6.92185701e-06 | D75: 32289.38057 | E75: 0.003325430857 | F75: 3346232.643 | G75: 1.530877277
B76: 8.095053114e-06 | C76: 8.095053114e-06 | D76: 32289.38057 | E76: 0.003325430857 | F76: 3346232.643 | G76: 1.530877277
B77: 9.268249217e-06 | C77: 9.268249217e-06 | D77: 32289.38057 | E77: 0.003325430857 | F77: 3346232.643 | G77: 1.530877277
B78: 1.044144532e-05 | C78: 1.044144532e-05 | D78: 32289.38057 | E78: 0.003325430857 | F78: 3346232.643 | G78: 1.530877277
B79: 1.161464142e-05 | C79: 1.161464142e-05 | D79: 32289.38057 | E79: 0.003325430857 | F79: 3346232.643 | G79: 1.530877277
B80: 1.278783753e-05 | C80: 1.278783753e-05 | D80: 32289.38057 | E80: 0.003325430857 | F80: 3346232.643 | G80: 1.530877277
B81: 1.396103363e-05 | C81: 1.396103363e-05 | D81: 32289.38057 | E81: 0.003325430857 | F81: 3346232.643 | G81: 1.530877277
B82: 1.513422973e-05 | C82: 1.513422973e-05 | D82: 32289.38057 | E82: 0.003325430857 | F82: 3346232.643 | G82: 1.530877277
B83: 1.630742584e-05 | C83: 1.630742584e-05 | D83: 32289.38057 | E83: 0.003325430857 | F83: 3346232.643 | G83: 1.530877277
B84: 1.748062194e-05 | C84: 1.748062194e-05 | D84: 32289.38057 | E84: 0.003325430857 | F84: 3346232.643 | G84: 1.530877277
B85: 1.865381804e-05 | C85: 1.865381804e-05 | D85: 32289.38057 | E85: 0.003325430857 | F85: 3346232.643 | G85: 1.530877277
B86: 1.982701415e-05 | C86: 1.982701415e-05 | D86: 32289.38057 | E86: 0.003325430857 | F86: 3346232.643 | G86: 1.530877277
B87: 2.100021025e-05 | C87: 2.100021025e-05 | D87: 32289.38057 | E87: 0.003325430857 | F87: 3346232.643 | G87: 1.530877277
B88: 2.217340636e-05 | C88: 2.217340636e-05 | D88: 32289.38057 | E88: 0.003325430857 | F88: 3346232.643 | G88: 1.530877277
B89: 2.334660246e-05 | C89: 2.334660246e-05 | D89: 32289.38057 | E89: 0.003325430857 | F89: 3346232.643 | G89: 1.530877277
B90: 2.451979856e-05 | C90: 2.451979856e-05 | D90: 32289.38057 | E90: 0.003325430857 | F90: 3346232.643 | G90: 1.530877277
B91: 2.569299467e-05 | C91: 2.569299467e-05 | D91: 32289.38057 | E91: 0.003325430857 | F91: 3346232.643 | G91: 1.530877277
B92: 2.686619077e-05 | C92: 2.686619077e-05 | D92: 32289.38057 | E92: 0.003325430857 | F92: 3346232.643 | G92: 1.530877277
B93: 2.803938687e-05 | C93: 2.803938687e-05 | D93: 32289.38057 | E93: 0.003325430857 | F93: 3346232.643 | G93: 1.530877277
B94: 2.921258298e-05 | C94: 2.921258298e-05 | D94: 32289.38057 | E94: 0.003325430857 | F94: 3346232.643 | G94: 1.530877277
B95: 3.038577908e-05 | C95: 3.038577908e-05 | D95: 32289.38057 | E95: 0.003325430857 | F95: 3346232.643 | G95: 1.530877277
B96: 3.155897518e-05 | C96: 3.155897518e-05 | D96: 32289.38057 | E96: 0.003325430857 | F96: 3346232.643 | G96: 1.530877277
B97: 3.273217129e-05 | C97: 3.273217129e-05 | D97: 32289.38057 | E97: 0.003325430857 | F97: 3346232.643 | G97: 1.530877277
B98: 3.390536739e-05 | C98: 3.390536739e-05 | D98: 32289.38057 | E98: 0.003325430857 | F98: 3346232.643 | G98: 1.530877277
B99: 3.507856349e-05 | C99: 3.507856349e-05 | D99: 32289.38057 | E99: 0.003325430857 | F99: 3346232.643 | G99: 1.530877277
B100: 3.62517596e-05 | C100: 3.62517596e-05 | D100: 32289.38057 | E100: 0.003325430857 | F100: 3346232.643 | G100: 1.530877277
B101: 3.74249557e-05 | C101: 3.74249557e-05 | D101: 32289.38057 | E101: 0.003325430857 | F101: 3346232.643 | G101: 1.530877277
B102: 3.85981518e-05 | C102: 3.85981518e-05 | D102: 32289.38057 | E102: 0.003325430857 | F102: 3346232.643 | G102: 1.530877277
B103: 3.977134791e-05 | C103: 3.977134791e-05 | D103: 32289.38057 | E103: 0.003325430857 | F103: 3346232.643 | G103: 1.530877277
B104: 4.094454401e-05 | C104: 4.094454401e-05 | D104: 32289.38057 | E104: 0.003325430857 | F104: 3346232.643 | G104: 1.530877277
B105: 4.211774011e-05 | C105: 4.211774011e-05 | D105: 32289.38057 | E105: 0.003325430857 | F105: 3346232.643 | G105: 1.530877277
B106: 4.329093622e-05 | C106: 4.329093622e-05 | D106: 32289.38057 | E106: 0.003325430857 | F106: 3346232.643 | G106: 1.530877277
B107: 4.446413232e-05 | C107: 4.446413232e-05 | D107: 32289.38057 | E107: 0.003325430857 | F107: 3346232.643 | G107: 1.530877277
B108: 4.563732842e-05 | C108: 4.563732842e-05 | D108: 32289.38057 | E108: 0.003325430857 | F108: 3346232.643 | G108: 1.530877277
B109: 4.681052453e-05 | C109: 4.681052453e-05 | D109: 32289.38057 | E109: 0.003325430857 | F109: 3346232.643 | G109: 1.530877277
B110: 4.798372063e-05 | C110: 4.798372063e-05 | D110: 32289.38057 | E110: 0.003325430857 | F110: 3346232.643 | G110: 1.530877277
B111: 4.915691673e-05 | C111: 4.915691673e-05 | D111: 32289.38057 | E111: 0.003325430857 | F111: 3346232.643 | G111: 1.530877277
B112: 5.033011284e-05 | C112: 5.033011284e-05 | D112: 32289.38057 | E112: 0.003325430857 | F112: 3346232.643 | G112: 1.530877277
B113: 5.150330894e-05 | C113: 5.150330894e-05 | D113: 32289.38057 | E113: 0.003325430857 | F113: 3346232.643 | G113: 1.530877277
B114: 5.267650504e-05 | C114: 5.267650504e-05 | D114: 32289.38057 | E114: 0.003325430857 | F114: 3346232.643 | G114: 1.530877277
B115: 5.384970115e-05 | C115: 5.384970115e-05 | D115: 32289.38057 | E115: 0.003325430857 | F115: 3346232.643 | G115: 1.530877277
B116: 5.502289725e-05 | C116: 5.502289725e-05 | D116: 32289.38057 | E116: 0.003325430857 | F116: 3346232.643 | G116: 1.530877277
B117: 5.619609335e-05 | C117: 5.619609335e-05 | D117: 32289.38057 | E117: 0.003325430857 | F117: 3346232.643 | G117: 1.530877277
B118: 5.736928946e-05 | C118: 5.736928946e-05 | D118: 32289.38057 | E118: 0.003325430857 | F118: 3346232.643 | G118: 1.530877277
B119: 5.854248556e-05 | C119: 5.854248556e-05 | D119: 32289.38057 | E119: 0.003325430857 | F119: 3346232.643 | G119: 1.530877277
B120: 5.971568167e-05 | C120: 5.971568167e-05 | D120: 32289.38057 | E120: 0.003325430857 | F120: 3346232.643 | G120: 1.530877277
B121: 6.088887777e-05 | C121: 6.088887777e-05 | D121: 32289.38057 | E121: 0.003325430857 | F121: 3346232.643 | G121: 1.530877277
B122: 6.206207387e-05 | C122: 6.206207387e-05 | D122: 32289.38057 | E122: 0.003325430857 | F122: 3346232.643 | G122: 1.530877277
B123: 6.323526998e-05 | C123: 6.323526998e-05 | D123: 32289.38057 | E123: 0.003325430857 | F123: 3346232.643 | G123: 1.530877277
B124: 6.440846608e-05 | C124: 6.440846608e-05 | D124: 32289.38057 | E124: 0.003325430857 | F124: 3346232.643 | G124: 1.530877277
B125: 6.558166218e-05 | C125: 6.558166218e-05 | D125: 32289.38057 | E125: 0.003325430857 | F125: 3346232.643 | G125: 1.530877277
B126: 6.675485829e-05 | C126: 6.675485829e-05 | D126: 32289.38057 | E126: 0.003325430857 | F126: 3346232.643 | G126: 1.530877277
B127: 6.792805439e-05 | C127: 6.792805439e-05 | D127: 32289.38057 | E127: 0.003325430857 | F127: 3346232.643 | G127: 1.530877277
B128: 6.910125049e-05 | C128: 6.910125049e-05 | D128: 32289.38057 | E128: 0.003325430857 | F128: 3346232.643 | G128: 1.530877277
B129: 7.02744466e-05 | C129: 7.02744466e-05 | D129: 32289.38057 | E129: 0.003325430857 | F129: 3346232.643 | G129: 1.530877277
B130: 7.14476427e-05 | C130: 7.14476427e-05 | D130: 32289.38057 | E130: 0.003325430857 | F130: 3346232.643 | G130: 1.530877277
B131: 7.26208388e-05 | C131: 7.26208388e-05 | D131: 32289.38057 | E131: 0.003325430857 | F131: 3346232.643 | G131: 1.530877277
B132: 7.379403491e-05 | C132: 7.379403491e-05 | D132: 32289.38057 | E132: 0.003325430857 | F132: 3346232.643 | G132: 1.530877277
B133: 7.496723101e-05 | C133: 7.496723101e-05 | D133: 32289.38057 | E133: 0.003325430857 | F133: 3346232.643 | G133: 1.530877277
B134: 7.614042711e-05 | C134: 7.614042711e-05 | D134: 32289.38057 | E134: 0.003325430857 | F134: 3346232.643 | G134: 1.530877277
B135: 7.731362322e-05 | C135: 7.731362322e-05 | D135: 32289.38057 | E135: 0.003325430857 | F135: 3346232.643 | G135: 1.530877277
B136: 7.848681932e-05 | C136: 7.848681932e-05 | D136: 32289.38057 | E136: 0.003325430857 | F136: 3346232.643 | G136: 1.530877277
B137: 7.966001542e-05 | C137: 7.966001542e-05 | D137: 32289.38057 | E137: 0.003325430857 | F137: 3346232.643 | G137: 1.530877277
B138: 8.083321153e-05 | C138: 8.083321153e-05 | D138: 32289.38057 | E138: 0.003325430857 | F138: 3346232.643 | G138: 1.530877277
B139: 8.200640763e-05 | C139: 8.200640763e-05 | D139: 32289.38057 | E139: 0.003325430857 | F139: 3346232.643 | G139: 1.530877277
B140: 8.317960373e-05 | C140: 8.317960373e-05 | D140: 32289.38057 | E140: 0.003325430857 | F140: 3346232.643 | G140: 1.530877277
B141: 8.435279984e-05 | C141: 8.435279984e-05 | D141: 32289.38057 | E141: 0.003325430857 | F141: 3346232.643 | G141: 1.530877277
B142: 8.552599594e-05 | C142: 8.552599594e-05 | D142: 32289.38057 | E142: 0.003325430857 | F142: 3346232.643 | G142: 1.530877277
B143: 6.845238095e-06 | C143: 6.845238095e-06 | D143: 32289.38057 | E143: 0.003325430857 | F143: 3346232.643 | G143: 1.530877277
B144: 2.053571429e-05 | C144: 2.053571429e-05 | D144: 32289.38057 | E144: 0.003325430857 | F144: 3346232.643 | G144: 1.530877277
B145: 3.422619048e-05 | C145: 3.422619048e-05 | D145: 32289.38057 | E145: 0.003325430857 | F145: 3346232.643 | G145: 1.530877277
B146: 4.791666667e-05 | C146: 4.791666667e-05 | D146: 32289.38057 | E146: 0.003325430857 | F146: 3346232.643 | G146: 1.530877277
B147: 6.160714286e-05 | C147: 6.160714286e-05 | D147: 32289.38057 | E147: 0.003325430857 | F147: 3346232.643 | G147: 1.530877277
B148: 7.529761905e-05 | C148: 7.529761905e-05 | D148: 32289.38057 | E148: 0.003325430857 | F148: 3346232.643 | G148: 1.530877277
B149: 8.898809524e-05 | C149: 8.898809524e-05 | D149: 32289.38057 | E149: 0.003325430857 | F149: 3346232.643 | G149: 1.530877277
B150: 0.0001026785714 | C150: 0.0001026785714 | D150: 32289.38057 | E150: 0.003325430857 | F150: 3346232.643 | G150: 1.530877277
B151: 0.0001163690476 | C151: 0.0001163690476 | D151: 32289.38057 | E151: 0.003325430857 | F151: 3346232.643 | G151: 1.530877277
B152: 0.0001300595238 | C152: 0.0001300595238 | D152: 32289.38057 | E152: 0.003325430857 | F152: 3346232.643 | G152: 1.530877277
B153: 0.00014375 | C153: 0.00014375 | D153: 32289.38057 | E153: 0.003325430857 | F153: 3346232.643 | G153: 1.530877277
B154: 0.0001574404762 | C154: 0.0001574404762 | D154: 32289.38057 | E154: 0.003325430857 | F154: 3346232.643 | G154: 1.530877277
B155: 0.0001711309524 | C155: 0.0001711309524 | D155: 32289.38057 | E155: 0.003325430857 | F155: 3346232.643 | G155: 1.530877277
B156: 0.0001848214286 | C156: 0.0001848214286 | D156: 32289.38057 | E156: 0.003325430857 | F156: 3346232.643 | G156: 1.530877277
B157: 0.0001985119048 | C157: 0.0001985119048 | D157: 32289.38057 | E157: 0.003325430857 | F157: 3346232.643 | G157: 1.530877277
B158: 0.000212202381 | C158: 0.000212202381 | D158: 32289.38057 | E158: 0.003325430857 | F158: 3346232.643 | G158: 1.530877277
B159: 0.0002258928571 | C159: 0.0002258928571 | D159: 32289.38057 | E159: 0.003325430857 | F159: 3346232.643 | G159: 1.530877277
B160: 0.0002395833333 | C160: 0.0002395833333 | D160: 32289.38057 | E160: 0.003325430857 | F160: 3346232.643 | G160: 1.530877277
B161: 0.0002532738095 | C161: 0.0002532738095 | D161: 32289.38057 | E161: 0.003325430857 | F161: 3346232.643 | G161: 1.530877277
B162: 0.0002669642857 | C162: 0.0002669642857 | D162: 32289.38057 | E162: 0.003325430857 | F162: 3346232.643 | G162: 1.530877277
B163: 0.0002806547619 | C163: 0.0002806547619 | D163: 32289.38057 | E163: 0.003325430857 | F163: 3346232.643 | G163: 1.530877277
B164: 0.0002943452381 | C164: 0.0002943452381 | D164: 32289.38057 | E164: 0.003325430857 | F164: 3346232.643 | G164: 1.530877277
B165: 0.0003080357143 | C165: 0.0003080357143 | D165: 32289.38057 | E165: 0.003325430857 | F165: 3346232.643 | G165: 1.530877277
B166: 0.0003217261905 | C166: 0.0003217261905 | D166: 32289.38057 | E166: 0.003325430857 | F166: 3346232.643 | G166: 1.530877277
B167: 0.0003354166667 | C167: 0.0003354166667 | D167: 32289.38057 | E167: 0.003325430857 | F167: 3346232.643 | G167: 1.530877277
B168: 0.0003491071429 | C168: 0.0003491071429 | D168: 32289.38057 | E168: 0.003325430857 | F168: 3346232.643 | G168: 1.530877277
B169: 3.24157919e-05 | C169: 3.24157919e-05 | D169: 32289.38057 | E169: 0.003325430857 | F169: 3346232.643 | G169: 1.530877277
B170: 0.0003565737109 | C170: 0.0003565737109 | D170: 32289.38057 | E170: 0.003325430857 | F170: 3346232.643 | G170: 1.530877277
B171: 0.00068073163 | C171: 0.00068073163 | D171: 32289.38057 | E171: 0.003325430857 | F171: 3346232.643 | G171: 1.530877277
B172: 0.001004889549 | C172: 0.001004889549 | D172: 32289.38057 | E172: 0.003325430857 | F172: 3346232.643 | G172: 1.530877277
B173: 0.001329047468 | C173: 0.001329047468 | D173: 32289.38057 | E173: 0.003325430857 | F173: 3346232.643 | G173: 1.530877277
B174: 0.001653205387 | C174: 0.001653205387 | D174: 32289.38057 | E174: 0.003325430857 | F174: 3346232.643 | G174: 1.530877277
B175: 0.001977363306 | C175: 0.001977363306 | D175: 32289.38057 | E175: 0.003325430857 | F175: 3346232.643 | G175: 1.530877277
B176: 0.002301521225 | C176: 0.002301521225 | D176: 32289.38057 | E176: 0.003325430857 | F176: 3346232.643 | G176: 1.530877277
B177: 0.002625679144 | C177: 0.002625679144 | D177: 32289.38057 | E177: 0.003325430857 | F177: 3346232.643 | G177: 1.530877277
B178: 0.002949837063 | C178: 0.002949837063 | D178: 32289.38057 | E178: 0.003325430857 | F178: 3346232.643 | G178: 1.530877277
B179: 0.003273994982 | C179: 0.003273994982 | D179: 32289.38057 | E179: 0.003325430857 | F179: 3346232.643 | G179: 1.530877277
B180: 0.003598152901 | C180: 0.003598152901 | D180: 32289.38057 | E180: 0.003325430857 | F180: 3346232.643 | G180: 1.530877277
B181: 0.00392231082 | C181: 0.00392231082 | D181: 32289.38057 | E181: 0.003325430857 | F181: 3346232.643 | G181: 1.530877277
B182: 0.004246468739 | C182: 0.004246468739 | D182: 32289.38057 | E182: 0.003325430857 | F182: 3346232.643 | G182: 1.530877277
B183: 0.004570626658 | C183: 0.004570626658 | D183: 32289.38057 | E183: 0.003325430857 | F183: 3346232.643 | G183: 1.530877277
B184: 0.004894784577 | C184: 0.004894784577 | D184: 32289.38057 | E184: 0.003325430857 | F184: 3346232.643 | G184: 1.530877277
B185: 0.005218942496 | C185: 0.005218942496 | D185: 32289.38057 | E185: 0.003325430857 | F185: 3346232.643 | G185: 1.530877277
B186: 0.005543100415 | C186: 0.005543100415 | D186: 32289.38057 | E186: 0.003325430857 | F186: 3346232.643 | G186: 1.530877277
B187: 0.005867258334 | C187: 0.005867258334 | D187: 32289.38057 | E187: 0.003325430857 | F187: 3346232.643 | G187: 1.530877277
B188: 0.006191416253 | C188: 0.006191416253 | D188: 32289.38057 | E188: 0.003325430857 | F188: 3346232.643 | G188: 1.530877277
B189: 0.006515574172 | C189: 0.006515574172 | D189: 32289.38057 | E189: 0.003325430857 | F189: 3346232.643 | G189: 1.530877277
B190: 0.006839732092 | C190: 0.006839732092 | D190: 32289.38057 | E190: 0.003325430857 | F190: 3346232.643 | G190: 1.530877277
B191: 0.007163890011 | C191: 0.007163890011 | D191: 32289.38057 | E191: 0.003325430857 | F191: 3346232.643 | G191: 1.530877277
B192: 0.00748804793 | C192: 0.00748804793 | D192: 32289.38057 | E192: 0.003325430857 | F192: 3346232.643 | G192: 1.530877277
B193: 0.007812205849 | C193: 0.007812205849 | D193: 32289.38057 | E193: 0.003325430857 | F193: 3346232.643 | G193: 1.530877277
B194: 0.008136363768 | C194: 0.008136363768 | D194: 32289.38057 | E194: 0.003325430857 | F194: 3346232.643 | G194: 1.530877277
B195: 0.008460521687 | C195: 0.008460521687 | D195: 32289.38057 | E195: 0.003325430857 | F195: 3346232.643 | G195: 1.530877277
B196: 0.008784679606 | C196: 0.008784679606 | D196: 32289.38057 | E196: 0.003325430857 | F196: 3346232.643 | G196: 1.530877277
B197: 0.009108837525 | C197: 0.009108837525 | D197: 32289.38057 | E197: 0.003325430857 | F197: 3346232.643 | G197: 1.530877277
B198: 0.009432995444 | C198: 0.009432995444 | D198: 32289.38057 | E198: 0.003325430857 | F198: 3346232.643 | G198: 1.530877277
B199: 0.009757153363 | C199: 0.009757153363 | D199: 32289.38057 | E199: 0.003325430857 | F199: 3346232.643 | G199: 1.530877277
B200: 0.01008131128 | C200: 0.01008131128 | D200: 32289.38057 | E200: 0.003325430857 | F200: 3346232.643 | G200: 1.530877277
B201: -5.659838342e-05 | C201: -5.659838342e-05 | D201: 32289.38057 | E201: 0.003325430857 | F201: 3346232.643 | G201: 1.530877277

Sheet 限界値
A1: ケース | B1: ひび割れφ（1/m） | C1: ひび割れM（kNm） | D1: ひび割れx（cm） | E1: 初期降伏φ（1/m） | F1: 初期降伏M（kNm） | G1: 初期降伏x（cm） | H1: 引張限界(性能2)φ（1/m） | I1: 引張限界(性能2)M（kNm） | J1: 引張限界(性能2)x（cm） | K1: 引張限界(性能3)φ（1/m） | L1: 引張限界(性能3)M（kNm） | M1: 引張限界(性能3)x（cm） | N1: 圧縮限界φ（1/m） | O1: 圧縮限界M（kNm） | P1: 圧縮限界x（cm）
A2: 1 | B2: 0.0001124362061 | C2: 9453.590045 | D2: 129.4639518 | E2: 0.001367962795 | F2: 30496.3498 | G2: 58.9 | H2: 0.02316935004 | I2: 34410.43553 | J2: 32.7 | K2: 0.03239454958 | L2: 34369.45883 | M2: 32.5 | N2: 0.04405624516 | O2: 34138.32407 | P2: 33.5
B3: -0.0001124362061 | C3: -9453.590045 | D3: 129.4639518 | E3: -0.001367962795 | F3: -30496.3498 | G3: 58.9 | H3: -0.02316935004 | I3: -34410.43553 | J3: 32.7 | K3: -0.03239454958 | L3: -34369.45883 | M3: 32.5 | N3: -0.04405624516 | O3: -34138.32407 | P3: 33.5
A4: 2 | B4: 5.627631409e-05 | C4: 18447.97299 | D4: 259.0738255 | E4: 0.0006465520875 | F4: 51093.58422 | G4: 118.2 | H4: 0.01226615293 | I4: 68780.74429 | J4: 65.8 | K4: 0.01730270976 | L4: 67717.46961 | M4: 68.2 | N4: 0.0173068182 | O4: 67700.63466 | P4: 68.4
B5: -5.627631409e-05 | C5: -18447.97299 | D5: 259.0738255 | E5: -0.0006465520875 | F5: -51093.58422 | G5: 118.2 | H5: -0.01226615293 | I5: -68780.74429 | J5: 65.8 | K5: -0.01730270976 | L5: -67717.46961 | M5: 68.2 | N5: -0.0173068182 | O5: -67700.63466 | P5: 68.4

Sheet 断面分割
A1: 1
A2: 番号 | B2: y(i)（m） | C2: ar(i)（m2） | E2: 番号 | F2: ys(i)（m） | G2: ars(i)（m2） | H2: 1 | K2: 番号 | L2: y(i)（m） | M2: ar(i)（m2） | O2: 番号 | P2: ys(i)（m） | Q2: ars(i)（m2） | R2: 1
A3: 1 | B3: 0.005 | C3: 0.04 | E3: 1 | F3: 0.15 | G3: 0.0246202 | K3: 1 | L3: 0.005 | M3: 0.04 | O3: 1 | P3: 0.15 | Q3: 0.0246202
A4: 2 | B4: 0.015 | C4: 0.04 | E4: 2 | F4: 0.25 | G4: 0.0135014 | K4: 2 | L4: 0.015 | M4: 0.04 | O4: 2 | P4: 0.25 | Q4: 0.0135014
A5: 3 | B5: 0.025 | C5: 0.04 | E5: 3 | F5: 0.375 | G5: 0.002311122 | K5: 3 | L5: 0.025 | M5: 0.04 | O5: 3 | P5: 0.375 | Q5: 0.002311122
A6: 4 | B6: 0.035 | C6: 0.04 | E6: 4 | F6: 0.5 | G6: 0.002311122 | K6: 4 | L6: 0.035 | M6: 0.04 | O6: 4 | P6: 0.5 | Q6: 0.002311122
A7: 5 | B7: 0.045 | C7: 0.04 | E7: 5 | F7: 0.625 | G7: 0.002311122 | K7: 5 | L7: 0.045 | M7: 0.04 | O7: 5 | P7: 0.625 | Q7: 0.002311122
A8: 6 | B8: 0.055 | C8: 0.04 | E8: 6 | F8: 0.75 | G8: 0.002311122 | K8: 6 | L8: 0.055 | M8: 0.04 | O8: 6 | P8: 0.75 | Q8: 0.002311122
A9: 7 | B9: 0.065 | C9: 0.04 | E9: 7 | F9: 0.875 | G9: 0.002311122 | K9: 7 | L9: 0.065 | M9: 0.04 | O9: 7 | P9: 0.875 | Q9: 0.002311122
A10: 8 | B10: 0.075 | C10: 0.04 | E10: 8 | F10: 1 | G10: 0.002311122 | K10: 8 | L10: 0.075 | M10: 0.04 | O10: 8 | P10: 1 | Q10: 0.002311122
A11: 9 | B11: 0.085 | C11: 0.04 | E11: 9 | F11: 1.125 | G11: 0.002311122 | K11: 9 | L11: 0.085 | M11: 0.04 | O11: 9 | P11: 1.125 | Q11: 0.002311122
A12: 10 | B12: 0.095 | C12: 0.04 | E12: 10 | F12: 1.25 | G12: 0.002311122 | K12: 10 | L12: 0.095 | M12: 0.04 | O12: 10 | P12: 1.25 | Q12: 0.002311122
A13: 11 | B13: 0.105 | C13: 0.04 | E13: 11 | F13: 1.375 | G13: 0.002311122 | K13: 11 | L13: 0.105 | M13: 0.04 | O13: 11 | P13: 1.375 | Q13: 0.002311122
A14: 12 | B14: 0.115 | C14: 0.04 | E14: 12 | F14: 1.5 | G14: 0.002311122 | K14: 12 | L14: 0.115 | M14: 0.04 | O14: 12 | P14: 1.5 | Q14: 0.002311122
A15: 13 | B15: 0.125 | C15: 0.04 | E15: 13 | F15: 1.625 | G15: 0.002311122 | K15: 13 | L15: 0.125 | M15: 0.04 | O15: 13 | P15: 1.625 | Q15: 0.002311122
A16: 14 | B16: 0.135 | C16: 0.04 | E16: 14 | F16: 1.75 | G16: 0.0135014 | K16: 14 | L16: 0.135 | M16: 0.04 | O16: 14 | P16: 1.75 | Q16: 0.0135014
A17: 15 | B17: 0.145 | C17: 0.0276899 | E17: 15 | F17: 1.85 | G17: 0.0246202 | K17: 15 | L17: 0.145 | M17: 0.0276899 | O17: 15 | P17: 1.85 | Q17: 0.0246202
A18: 16 | B18: 0.155 | C18: 0.0276899 | K18: 16 | L18: 0.155 | M18: 0.0276899
A19: 17 | B19: 0.165 | C19: 0.04 | K19: 17 | L19: 0.165 | M19: 0.04
A20: 18 | B20: 0.175 | C20: 0.04 | K20: 18 | L20: 0.175 | M20: 0.04
A21: 19 | B21: 0.185 | C21: 0.04 | K21: 19 | L21: 0.185 | M21: 0.04
A22: 20 | B22: 0.195 | C22: 0.04 | K22: 20 | L22: 0.195 | M22: 0.04
A23: 21 | B23: 0.205 | C23: 0.04 | K23: 21 | L23: 0.205 | M23: 0.04
A24: 22 | B24: 0.215 | C24: 0.04 | K24: 22 | L24: 0.215 | M24: 0.04
A25: 23 | B25: 0.225 | C25: 0.04 | K25: 23 | L25: 0.225 | M25: 0.04
A26: 24 | B26: 0.235 | C26: 0.04 | K26: 24 | L26: 0.235 | M26: 0.04
A27: 25 | B27: 0.245 | C27: 0.0332493 | K27: 25 | L27: 0.245 | M27: 0.0332493
A28: 26 | B28: 0.255 | C28: 0.0332493 | K28: 26 | L28: 0.255 | M28: 0.0332493
A29: 27 | B29: 0.265 | C29: 0.04 | K29: 27 | L29: 0.265 | M29: 0.04
A30: 28 | B30: 0.275 | C30: 0.04 | K30: 28 | L30: 0.275 | M30: 0.04
A31: 29 | B31: 0.285 | C31: 0.04 | K31: 29 | L31: 0.285 | M31: 0.04
A32: 30 | B32: 0.295 | C32: 0.04 | K32: 30 | L32: 0.295 | M32: 0.04
A33: 31 | B33: 0.305 | C33: 0.04 | K33: 31 | L33: 0.305 | M33: 0.04
A34: 32 | B34: 0.315 | C34: 0.04 | K34: 32 | L34: 0.315 | M34: 0.04
A35: 33 | B35: 0.325 | C35: 0.04 | K35: 33 | L35: 0.325 | M35: 0.04
A36: 34 | B36: 0.335 | C36: 0.04 | K36: 34 | L36: 0.335 | M36: 0.04
A37: 35 | B37: 0.345 | C37: 0.04 | K37: 35 | L37: 0.345 | M37: 0.04
A38: 36 | B38: 0.355 | C38: 0.04 | K38: 36 | L38: 0.355 | M38: 0.04
A39: 37 | B39: 0.365 | C39: 0.04 | K39: 37 | L39: 0.365 | M39: 0.04
A40: 38 | B40: 0.375 | C40: 0.037688878 | K40: 38 | L40: 0.375 | M40: 0.037688878
A41: 39 | B41: 0.385 | C41: 0.04 | K41: 39 | L41: 0.385 | M41: 0.04
A42: 40 | B42: 0.395 | C42: 0.04 | K42: 40 | L42: 0.395 | M42: 0.04
A43: 41 | B43: 0.405 | C43: 0.04 | K43: 41 | L43: 0.405 | M43: 0.04
A44: 42 | B44: 0.415 | C44: 0.04 | K44: 42 | L44: 0.415 | M44: 0.04
A45: 43 | B45: 0.425 | C45: 0.04 | K45: 43 | L45: 0.425 | M45: 0.04
A46: 44 | B46: 0.435 | C46: 0.04 | K46: 44 | L46: 0.435 | M46: 0.04
A47: 45 | B47: 0.445 | C47: 0.04 | K47: 45 | L47: 0.445 | M47: 0.04
A48: 46 | B48: 0.455 | C48: 0.04 | K48: 46 | L48: 0.455 | M48: 0.04
A49: 47 | B49: 0.465 | C49: 0.04 | K49: 47 | L49: 0.465 | M49: 0.04
A50: 48 | B50: 0.475 | C50: 0.04 | K50: 48 | L50: 0.475 | M50: 0.04
A51: 49 | B51: 0.485 | C51: 0.04 | K51: 49 | L51: 0.485 | M51: 0.04
A52: 50 | B52: 0.495 | C52: 0.038844439 | K52: 50 | L52: 0.495 | M52: 0.038844439
A53: 51 | B53: 0.505 | C53: 0.038844439 | K53: 51 | L53: 0.505 | M53: 0.038844439
A54: 52 | B54: 0.515 | C54: 0.04 | K54: 52 | L54: 0.515 | M54: 0.04
A55: 53 | B55: 0.525 | C55: 0.04 | K55: 53 | L55: 0.525 | M55: 0.04
A56: 54 | B56: 0.535 | C56: 0.04 | K56: 54 | L56: 0.535 | M56: 0.04
A57: 55 | B57: 0.545 | C57: 0.04 | K57: 55 | L57: 0.545 | M57: 0.04
A58: 56 | B58: 0.555 | C58: 0.04 | K58: 56 | L58: 0.555 | M58: 0.04
A59: 57 | B59: 0.565 | C59: 0.04 | K59: 57 | L59: 0.565 | M59: 0.04
A60: 58 | B60: 0.575 | C60: 0.04 | K60: 58 | L60: 0.575 | M60: 0.04
A61: 59 | B61: 0.585 | C61: 0.04 | K61: 59 | L61: 0.585 | M61: 0.04
A62: 60 | B62: 0.595 | C62: 0.04 | K62: 60 | L62: 0.595 | M62: 0.04
A63: 61 | B63: 0.605 | C63: 0.04 | K63: 61 | L63: 0.605 | M63: 0.04
A64: 62 | B64: 0.615 | C64: 0.04 | K64: 62 | L64: 0.615 | M64: 0.04
A65: 63 | B65: 0.625 | C65: 0.037688878 | K65: 63 | L65: 0.625 | M65: 0.037688878
A66: 64 | B66: 0.635 | C66: 0.04 | K66: 64 | L66: 0.635 | M66: 0.04
A67: 65 | B67: 0.645 | C67: 0.04 | K67: 65 | L67: 0.645 | M67: 0.04
A68: 66 | B68: 0.655 | C68: 0.04 | K68: 66 | L68: 0.655 | M68: 0.04
A69: 67 | B69: 0.665 | C69: 0.04 | K69: 67 | L69: 0.665 | M69: 0.04
A70: 68 | B70: 0.675 | C70: 0.04 | K70: 68 | L70: 0.675 | M70: 0.04
A71: 69 | B71: 0.685 | C71: 0.04 | K71: 69 | L71: 0.685 | M71: 0.04
A72: 70 | B72: 0.695 | C72: 0.04 | K72: 70 | L72: 0.695 | M72: 0.04
A73: 71 | B73: 0.705 | C73: 0.04 | K73: 71 | L73: 0.705 | M73: 0.04
A74: 72 | B74: 0.715 | C74: 0.04 | K74: 72 | L74: 0.715 | M74: 0.04
A75: 73 | B75: 0.725 | C75: 0.04 | K75: 73 | L75: 0.725 | M75: 0.04
A76: 74 | B76: 0.735 | C76: 0.04 | K76: 74 | L76: 0.735 | M76: 0.04
A77: 75 | B77: 0.745 | C77: 0.038844439 | K77: 75 | L77: 0.745 | M77: 0.038844439
A78: 76 | B78: 0.755 | C78: 0.038844439 | K78: 76 | L78: 0.755 | M78: 0.038844439
A79: 77 | B79: 0.765 | C79: 0.04 | K79: 77 | L79: 0.765 | M79: 0.04
A80: 78 | B80: 0.775 | C80: 0.04 | K80: 78 | L80: 0.775 | M80: 0.04
A81: 79 | B81: 0.785 | C81: 0.04 | K81: 79 | L81: 0.785 | M81: 0.04
A82: 80 | B82: 0.795 | C82: 0.04 | K82: 80 | L82: 0.795 | M82: 0.04
A83: 81 | B83: 0.805 | C83: 0.04 | K83: 81 | L83: 0.805 | M83: 0.04
A84: 82 | B84: 0.815 | C84: 0.04 | K84: 82 | L84: 0.815 | M84: 0.04
A85: 83 | B85: 0.825 | C85: 0.04 | K85: 83 | L85: 0.825 | M85: 0.04
A86: 84 | B86: 0.835 | C86: 0.04 | K86: 84 | L86: 0.835 | M86: 0.04
A87: 85 | B87: 0.845 | C87: 0.04 | K87: 85 | L87: 0.845 | M87: 0.04
A88: 86 | B88: 0.855 | C88: 0.04 | K88: 86 | L88: 0.855 | M88: 0.04
A89: 87 | B89: 0.865 | C89: 0.04 | K89: 87 | L89: 0.865 | M89: 0.04
A90: 88 | B90: 0.875 | C90: 0.037688878 | K90: 88 | L90: 0.875 | M90: 0.037688878
A91: 89 | B91: 0.885 | C91: 0.04 | K91: 89 | L91: 0.885 | M91: 0.04
A92: 90 | B92: 0.895 | C92: 0.04 | K92: 90 | L92: 0.895 | M92: 0.04
A93: 91 | B93: 0.905 | C93: 0.04 | K93: 91 | L93: 0.905 | M93: 0.04
A94: 92 | B94: 0.915 | C94: 0.04 | K94: 92 | L94: 0.915 | M94: 0.04
A95: 93 | B95: 0.925 | C95: 0.04 | K95: 93 | L95: 0.925 | M95: 0.04
A96: 94 | B96: 0.935 | C96: 0.04 | K96: 94 | L96: 0.935 | M96: 0.04
A97: 95 | B97: 0.945 | C97: 0.04 | K97: 95 | L97: 0.945 | M97: 0.04
A98: 96 | B98: 0.955 | C98: 0.04 | K98: 96 | L98: 0.955 | M98: 0.04
A99: 97 | B99: 0.965 | C99: 0.04 | K99: 97 | L99: 0.965 | M99: 0.04
A100: 98 | B100: 0.975 | C100: 0.04 | K100: 98 | L100: 0.975 | M100: 0.04
A101: 99 | B101: 0.985 | C101: 0.04 | K101: 99 | L101: 0.985 | M101: 0.04
A102: 100 | B102: 0.995 | C102: 0.038844439 | K102: 100 | L102: 0.995 | M102: 0.038844439
A103: 101 | B103: 1.005 | C103: 0.038844439 | K103: 101 | L103: 1.005 | M103: 0.038844439
A104: 102 | B104: 1.015 | C104: 0.04 | K104: 102 | L104: 1.015 | M104: 0.04
A105: 103 | B105: 1.025 | C105: 0.04 | K105: 103 | L105: 1.025 | M105: 0.04
A106: 104 | B106: 1.035 | C106: 0.04 | K106: 104 | L106: 1.035 | M106: 0.04
A107: 105 | B107: 1.045 | C107: 0.04 | K107: 105 | L107: 1.045 | M107: 0.04
A108: 106 | B108: 1.055 | C108: 0.04 | K108: 106 | L108: 1.055 | M108: 0.04
A109: 107 | B109: 1.065 | C109: 0.04 | K109: 107 | L109: 1.065 | M109: 0.04
A110: 108 | B110: 1.075 | C110: 0.04 | K110: 108 | L110: 1.075 | M110: 0.04
A111: 109 | B111: 1.085 | C111: 0.04 | K111: 109 | L111: 1.085 | M111: 0.04
A112: 110 | B112: 1.095 | C112: 0.04 | K112: 110 | L112: 1.095 | M112: 0.04
A113: 111 | B113: 1.105 | C113: 0.04 | K113: 111 | L113: 1.105 | M113: 0.04
A114: 112 | B114: 1.115 | C114: 0.04 | K114: 112 | L114: 1.115 | M114: 0.04
A115: 113 | B115: 1.125 | C115: 0.037688878 | K115: 113 | L115: 1.125 | M115: 0.037688878
A116: 114 | B116: 1.135 | C116: 0.04 | K116: 114 | L116: 1.135 | M116: 0.04
A117: 115 | B117: 1.145 | C117: 0.04 | K117: 115 | L117: 1.145 | M117: 0.04
A118: 116 | B118: 1.155 | C118: 0.04 | K118: 116 | L118: 1.155 | M118: 0.04
A119: 117 | B119: 1.165 | C119: 0.04 | K119: 117 | L119: 1.165 | M119: 0.04
A120: 118 | B120: 1.175 | C120: 0.04 | K120: 118 | L120: 1.175 | M120: 0.04
A121: 119 | B121: 1.185 | C121: 0.04 | K121: 119 | L121: 1.185 | M121: 0.04
A122: 120 | B122: 1.195 | C122: 0.04 | K122: 120 | L122: 1.195 | M122: 0.04
A123: 121 | B123: 1.205 | C123: 0.04 | K123: 121 | L123: 1.205 | M123: 0.04
A124: 122 | B124: 1.215 | C124: 0.04 | K124: 122 | L124: 1.215 | M124: 0.04
A125: 123 | B125: 1.225 | C125: 0.04 | K125: 123 | L125: 1.225 | M125: 0.04
A126: 124 | B126: 1.235 | C126: 0.04 | K126: 124 | L126: 1.235 | M126: 0.04
A127: 125 | B127: 1.245 | C127: 0.038844439 | K127: 125 | L127: 1.245 | M127: 0.038844439
A128: 126 | B128: 1.255 | C128: 0.038844439 | K128: 126 | L128: 1.255 | M128: 0.038844439
A129: 127 | B129: 1.265 | C129: 0.04 | K129: 127 | L129: 1.265 | M129: 0.04
A130: 128 | B130: 1.275 | C130: 0.04 | K130: 128 | L130: 1.275 | M130: 0.04
A131: 129 | B131: 1.285 | C131: 0.04 | K131: 129 | L131: 1.285 | M131: 0.04
A132: 130 | B132: 1.295 | C132: 0.04 | K132: 130 | L132: 1.295 | M132: 0.04
A133: 131 | B133: 1.305 | C133: 0.04 | K133: 131 | L133: 1.305 | M133: 0.04
A134: 132 | B134: 1.315 | C134: 0.04 | K134: 132 | L134: 1.315 | M134: 0.04
A135: 133 | B135: 1.325 | C135: 0.04 | K135: 133 | L135: 1.325 | M135: 0.04
A136: 134 | B136: 1.335 | C136: 0.04 | K136: 134 | L136: 1.335 | M136: 0.04
A137: 135 | B137: 1.345 | C137: 0.04 | K137: 135 | L137: 1.345 | M137: 0.04
A138: 136 | B138: 1.355 | C138: 0.04 | K138: 136 | L138: 1.355 | M138: 0.04
A139: 137 | B139: 1.365 | C139: 0.04 | K139: 137 | L139: 1.365 | M139: 0.04
A140: 138 | B140: 1.375 | C140: 0.037688878 | K140: 138 | L140: 1.375 | M140: 0.037688878
A141: 139 | B141: 1.385 | C141: 0.04 | K141: 139 | L141: 1.385 | M141: 0.04
A142: 140 | B142: 1.395 | C142: 0.04 | K142: 140 | L142: 1.395 | M142: 0.04
A143: 141 | B143: 1.405 | C143: 0.04 | K143: 141 | L143: 1.405 | M143: 0.04
A144: 142 | B144: 1.415 | C144: 0.04 | K144: 142 | L144: 1.415 | M144: 0.04
A145: 143 | B145: 1.425 | C145: 0.04 | K145: 143 | L145: 1.425 | M145: 0.04
A146: 144 | B146: 1.435 | C146: 0.04 | K146: 144 | L146: 1.435 | M146: 0.04
A147: 145 | B147: 1.445 | C147: 0.04 | K147: 145 | L147: 1.445 | M147: 0.04
A148: 146 | B148: 1.455 | C148: 0.04 | K148: 146 | L148: 1.455 | M148: 0.04
A149: 147 | B149: 1.465 | C149: 0.04 | K149: 147 | L149: 1.465 | M149: 0.04
A150: 148 | B150: 1.475 | C150: 0.04 | K150: 148 | L150: 1.475 | M150: 0.04
A151: 149 | B151: 1.485 | C151: 0.04 | K151: 149 | L151: 1.485 | M151: 0.04
A152: 150 | B152: 1.495 | C152: 0.038844439 | K152: 150 | L152: 1.495 | M152: 0.038844439
A153: 151 | B153: 1.505 | C153: 0.038844439 | K153: 151 | L153: 1.505 | M153: 0.038844439
A154: 152 | B154: 1.515 | C154: 0.04 | K154: 152 | L154: 1.515 | M154: 0.04
A155: 153 | B155: 1.525 | C155: 0.04 | K155: 153 | L155: 1.525 | M155: 0.04
A156: 154 | B156: 1.535 | C156: 0.04 | K156: 154 | L156: 1.535 | M156: 0.04
A157: 155 | B157: 1.545 | C157: 0.04 | K157: 155 | L157: 1.545 | M157: 0.04
A158: 156 | B158: 1.555 | C158: 0.04 | K158: 156 | L158: 1.555 | M158: 0.04
A159: 157 | B159: 1.565 | C159: 0.04 | K159: 157 | L159: 1.565 | M159: 0.04
A160: 158 | B160: 1.575 | C160: 0.04 | K160: 158 | L160: 1.575 | M160: 0.04
A161: 159 | B161: 1.585 | C161: 0.04 | K161: 159 | L161: 1.585 | M161: 0.04
A162: 160 | B162: 1.595 | C162: 0.04 | K162: 160 | L162: 1.595 | M162: 0.04
A163: 161 | B163: 1.605 | C163: 0.04 | K163: 161 | L163: 1.605 | M163: 0.04
A164: 162 | B164: 1.615 | C164: 0.04 | K164: 162 | L164: 1.615 | M164: 0.04
A165: 163 | B165: 1.625 | C165: 0.037688878 | K165: 163 | L165: 1.625 | M165: 0.037688878
A166: 164 | B166: 1.635 | C166: 0.04 | K166: 164 | L166: 1.635 | M166: 0.04
A167: 165 | B167: 1.645 | C167: 0.04 | K167: 165 | L167: 1.645 | M167: 0.04
A168: 166 | B168: 1.655 | C168: 0.04 | K168: 166 | L168: 1.655 | M168: 0.04
A169: 167 | B169: 1.665 | C169: 0.04 | K169: 167 | L169: 1.665 | M169: 0.04
A170: 168 | B170: 1.675 | C170: 0.04 | K170: 168 | L170: 1.675 | M170: 0.04
A171: 169 | B171: 1.685 | C171: 0.04 | K171: 169 | L171: 1.685 | M171: 0.04
A172: 170 | B172: 1.695 | C172: 0.04 | K172: 170 | L172: 1.695 | M172: 0.04
A173: 171 | B173: 1.705 | C173: 0.04 | K173: 171 | L173: 1.705 | M173: 0.04
A174: 172 | B174: 1.715 | C174: 0.04 | K174: 172 | L174: 1.715 | M174: 0.04
A175: 173 | B175: 1.725 | C175: 0.04 | K175: 173 | L175: 1.725 | M175: 0.04
A176: 174 | B176: 1.735 | C176: 0.04 | K176: 174 | L176: 1.735 | M176: 0.04
A177: 175 | B177: 1.745 | C177: 0.0332493 | K177: 175 | L177: 1.745 | M177: 0.0332493
A178: 176 | B178: 1.755 | C178: 0.0332493 | K178: 176 | L178: 1.755 | M178: 0.0332493
A179: 177 | B179: 1.765 | C179: 0.04 | K179: 177 | L179: 1.765 | M179: 0.04
A180: 178 | B180: 1.775 | C180: 0.04 | K180: 178 | L180: 1.775 | M180: 0.04
A181: 179 | B181: 1.785 | C181: 0.04 | K181: 179 | L181: 1.785 | M181: 0.04
A182: 180 | B182: 1.795 | C182: 0.04 | K182: 180 | L182: 1.795 | M182: 0.04
A183: 181 | B183: 1.805 | C183: 0.04 | K183: 181 | L183: 1.805 | M183: 0.04
A184: 182 | B184: 1.815 | C184: 0.04 | K184: 182 | L184: 1.815 | M184: 0.04
A185: 183 | B185: 1.825 | C185: 0.04 | K185: 183 | L185: 1.825 | M185: 0.04
A186: 184 | B186: 1.835 | C186: 0.04 | K186: 184 | L186: 1.835 | M186: 0.04
A187: 185 | B187: 1.845 | C187: 0.0276899 | K187: 185 | L187: 1.845 | M187: 0.0276899
A188: 186 | B188: 1.855 | C188: 0.0276899 | K188: 186 | L188: 1.855 | M188: 0.0276899
A189: 187 | B189: 1.865 | C189: 0.04 | K189: 187 | L189: 1.865 | M189: 0.04
A190: 188 | B190: 1.875 | C190: 0.04 | K190: 188 | L190: 1.875 | M190: 0.04
A191: 189 | B191: 1.885 | C191: 0.04 | K191: 189 | L191: 1.885 | M191: 0.04
A192: 190 | B192: 1.895 | C192: 0.04 | K192: 190 | L192: 1.895 | M192: 0.04
A193: 191 | B193: 1.905 | C193: 0.04 | K193: 191 | L193: 1.905 | M193: 0.04
A194: 192 | B194: 1.915 | C194: 0.04 | K194: 192 | L194: 1.915 | M194: 0.04
A195: 193 | B195: 1.925 | C195: 0.04 | K195: 193 | L195: 1.925 | M195: 0.04
A196: 194 | B196: 1.935 | C196: 0.04 | K196: 194 | L196: 1.935 | M196: 0.04
A197: 195 | B197: 1.945 | C197: 0.04 | K197: 195 | L197: 1.945 | M197: 0.04
A198: 196 | B198: 1.955 | C198: 0.04 | K198: 196 | L198: 1.955 | M198: 0.04
A199: 197 | B199: 1.965 | C199: 0.04 | K199: 197 | L199: 1.965 | M199: 0.04
A200: 198 | B200: 1.975 | C200: 0.04 | K200: 198 | L200: 1.975 | M200: 0.04
... 404 more rows

Sheet Sheet1
B2: 橋軸方向
C3: 限界値計算 | E3: Mφ計算 | G3: 道示計算例 | I3: 比（限界値計算） | K3: 比（Mφ計算）
C4: φ | D4: M | E4: φ | F4: M | G4: φ | H4: M | I4: φ | J4: M | K4: φ | L4: M
B5: ひび割れ | C5: 0.0001124362061 | D5: 9453.590045 | E5: 0.000125 | F5: 8960.18223 | G5: 0.0001121 | H5: 9558 | I5: =C5/G5 -> 1.002999163 | J5: =D5/H5 -> 0.9890761713 | K5: =E5/G5 -> 1.115075825 | L5: =F5/H5 -> 0.9374536754
B6: 初期降伏 | C6: 0.001367962795 | D6: 30496.3498 | E6: 0.001375 | F6: 30573.90753 | G6: 0.00136 | H6: 30410 | I6: =C6/G6 -> 1.005854997 | J6: =D6/H6 -> 1.00283952 | K6: =E6/G6 -> 1.011029412 | L6: =F6/H6 -> 1.005389922
B7: 引張・性能2 | C7: 0.02316935004 | D7: 34410.43553 | E7: 0.023175 | F7: 34410.47884 | G7: 0.02315 | H7: 34490 | I7: 1.000835855 | J7: 0.9976931149 | K7: 1.001079914 | L7: 0.9976943706
B8: 引張・性能3 | C8: 0.03239454958 | D8: 34369.45883 | E8: 0.0324 | F8: 34369.40088 | G8: 0.03232 | H8: 34460 | I8: 1.002306608 | J8: 0.9973725721 | K8: 1.002475248 | L8: 0.9973708903
B9: 圧縮 | C9: 0.04405624516 | D9: 34138.32407 | E9: 0.044075 | F9: 34137.90653
B11: 橋軸直交方向
C12: 限界値計算 | E12: Mφ計算 | G12: 道示計算例 | I12: 比（限界値計算） | K12: 比（Mφ計算）
C13: φ | D13: M | E13: φ | F13: M | G13: φ | H13: M | I13: φ | J13: M | K13: φ | L13: M
B14: ひび割れ | C14: 5.627631409e-05 | D14: 18447.97299 | E14: 6e-05 | F14: 17540.09232 | G14: 5.609e-05 | H14: 18640 | I14: =C14/G14 -> 1.003321699 | J14: =D14/H14 -> 0.9896981219 | K14: =E14/G14 -> 1.069709396 | L14: =F14/H14 -> 0.9409920772
B15: 初期降伏 | C15: 0.0006465520875 | D15: 51093.58422 | E15: 0.00065 | F15: 51232.93678 | G15: 0.0006431 | H15: 50840 | I15: =C15/G15 -> 1.005367886 | J15: =D15/H15 -> 1.004987888 | K15: =E15/G15 -> 1.01072928 | L15: =F15/H15 -> 1.00772889
B16: 引張・性能2 | C16: 0.01226615293 | D16: 68780.74429 | E16: 0.01227 | F16: 68780.24081 | G16: 0.01224 | H16: 68900 | I16: 1.002136677 | J16: 0.9982691478 | K16: 1.00245098 | L16: 0.9982618404
B17: 引張・性能3 | C17: 0.01730270976 | D17: 67717.46961 | E17: 0.01731 | F17: 67715.73495 | G17: 0.0173 | H17: 67800 | I17: 1.000156634 | J17: 0.9987827376 | K17: 1.000578035 | L17: 0.9987571526
B18: 圧縮 | C18: 0.0173068182 | D18: 67700.63466 | E18: 0.01732 | F18: 67681.75321
B19: (注）上記で「限界値計算」は「分割法による矩形断面のMφ限界値計算」により、「Mφ計算」は「分割法によるRC断面のMφ計算」により計算したものである
